fUST/lending_fUST_20240724
["ID","MTS","AMOUNT","RATE_DAILY","PERIOD"]
[333067596,1721814450337,-155.47332392,0.00013698,2]
[333067597,1721814450363,-179.870975,0.00013698,2]
[333067598,1721814450386,-179.870975,0.00013698,2]
[333067599,1721814450409,-179.870975,0.00013698,2]
[333067600,1721814450436,-179.870975,0.00013698,2]
[333067601,1721814450460,-179.870975,0.00013698,2]
[333067602,1721814450483,-179.870975,0.00013698,2]
[333067603,1721814450508,-179.870975,0.00013698,2]
[333067604,1721814450533,-179.870975,0.00013698,2]
[333067605,1721814450559,-151.0,0.00013698,2]
[333067606,1721814450583,-179.870975,0.00013698,2]
[333067607,1721814450606,-151.0,0.00013698,2]
[333067608,1721814450631,-179.870975,0.00013698,2]
[333067609,1721814450655,-151.0,0.00013698,2]
[333067610,1721814450678,-179.870975,0.00013698,2]
[333067611,1721814450700,-500.0,0.00013698,2]
[333067612,1721814450723,-151.0,0.00013698,2]
[333067613,1721814450745,-163.35587004,0.00013698,2]
[333067614,1721814450770,-179.870973,0.00013698,2]
[333067615,1721814450792,-151.0,0.00013698,2]
[333067616,1721814450814,-500.0,0.00013698,2]
[333067617,1721814450837,-151.0,0.00013698,2]
[333067618,1721814450860,-11510.13,0.00013698,2]
[333067619,1721814450883,-228.808553,0.00013698,2]
[333067620,1721814450905,-503.06487168,0.00013698,2]
[333067621,1721814450928,-500.0,0.00013698,2]
[333067622,1721814450952,-1392.61,0.00013698,2]
[333067623,1721814450975,-500.0,0.00013698,2]
[333067624,1721814451002,-500.0,0.00013698,2]
[333067625,1721814451028,-4548.36,0.00013698,2]
[333067626,1721814451054,-530.9713646,0.00013698,2]
[333067627,1721814451080,-212.162662,0.00013698,2]
[333067628,1721814451107,-212.162662,0.00013698,2]
[333067629,1721814451131,-500.0,0.00013698,2]
[333067630,1721814451157,-212.162662,0.00013698,2]
[333067631,1721814451182,-212.162662,0.00013698,2]
[333067632,1721814451400,-500.0,0.00013698,2]
[333067633,1721814451433,-323.22216477,0.00013698,2]
[333067634,1721814451458,-212.162662,0.00013698,2]
[333067635,1721814451481,-212.162662,0.00013698,2]
[333067636,1721814451506,-504.898801,0.00013698,2]
[333067637,1721814451530,-2477.24,0.00013698,2]
[333067638,1721814451553,-212.162662,0.00013698,2]
[333067639,1721814451577,-212.162662,0.00013698,2]
[333067640,1721814451599,-212.162662,0.00013698,2]
[333067641,1721814451622,-212.162662,0.00013698,2]
[333067642,1721814451645,-212.162662,0.00013698,2]
[333067643,1721814451670,-212.162662,0.00013698,2]
[333067644,1721814451692,-500.0,0.00013698,2]
[333067645,1721814451714,-212.162662,0.00013698,2]
[333067646,1721814451736,-212.162662,0.00013698,2]
[333067647,1721814451759,-151.0,0.00013698,2]
[333067648,1721814451781,-212.162662,0.00013698,2]
[333067649,1721814451803,-283.166993,0.00013698,2]
[333067650,1721814451824,-212.162662,0.00013698,2]
[333067651,1721814451846,-212.162662,0.00013698,2]
[333067652,1721814451867,-212.162662,0.00013698,2]
[333067653,1721814451889,-212.162662,0.00013698,2]
[333067654,1721814451910,-500.0,0.00013698,2]
[333067655,1721814451934,-212.162664,0.00013698,2]
[333067656,1721814451955,-1202.13,0.00013698,2]
[333067657,1721814451977,-500.0,0.00013698,2]
[333067658,1721814452001,-500.0,0.00013698,2]
[333067659,1721814452026,-500.0,0.00013698,2]
[333067660,1721814452048,-500.0,0.00013698,2]
[333067661,1721814452069,-1909.46155372,0.00013698,2]
[333067662,1721814452090,-500.0,0.00013698,2]
[333067663,1721814452111,-500.0,0.00013698,2]
[333067664,1721814452132,-1015.18,0.00013698,2]
[333067665,1721814452154,-699.07,0.00013698,2]
[333067666,1721814452180,-500.0,0.00013698,2]
[333067667,1721814452201,-500.0,0.00013698,2]
[333067668,1721814452222,-502.79591149,0.00013698,2]
[333067669,1721814452244,-500.0,0.00013698,2]
[333067670,1721814452264,-1471.2,0.00013698,2]
[333067671,1721814452285,-500.0,0.00013698,2]
[333067672,1721814452306,-502.14372386,0.00013698,2]
[333067673,1721814452327,-500.0,0.00013698,2]
[333067674,1721814452348,-500.0,0.00013698,2]
[333067675,1721814452370,-500.0,0.00013698,2]
[333067676,1721814452391,-504.19843243,0.00013698,2]
[333067677,1721814452419,-317.99862591,0.00013698,2]
[333067678,1721814452440,-500.0,0.00013698,2]
[333067679,1721814452461,-500.0,0.00013698,2]
[333067680,1721814452482,-217.09980002,0.00013698,2]
[333067681,1721814452506,-500.0,0.00013698,2]
[333067682,1721814452528,-500.0,0.00013698,2]
[333067683,1721814452549,-596.48288532,0.00013698,2]
[333067684,1721814452570,-353.12478652,0.00013698,2]
[333067685,1721814452592,-500.0,0.00013698,2]
[333067686,1721814452614,-500.0,0.00013698,2]
[333067687,1721814452635,-500.0,0.00013698,2]
[333067688,1721814452657,-500.0,0.00013698,2]
[333067689,1721814452682,-500.0,0.00013698,2]
[333067690,1721814452703,-500.0,0.00013698,2]
[333067691,1721814452724,-500.0,0.00013698,2]
[333067692,1721814452745,-500.0,0.00013698,2]
[333067693,1721814452766,-500.0,0.00013698,2]
[333067694,1721814452787,-500.0,0.00013698,2]
[333067695,1721814452809,-151.0,0.00013698,2]
[333067696,1721814452831,-500.0,0.00013698,2]
[333067697,1721814452851,-151.0,0.00013698,2]
[333067698,1721814452875,-978.66,0.00013698,2]
[333067699,1721814452898,-978.66,0.00013698,2]
[333067700,1721814452925,-179.862018,0.00013698,2]
[333067701,1721814452952,-978.66,0.00013698,2]
[333067702,1721814452975,-978.66,0.00013698,2]
[333067703,1721814452999,-978.66,0.00013698,2]
[333067704,1721814453024,-978.66,0.00013698,2]
[333067705,1721814453049,-978.66,0.00013698,2]
[333067706,1721814453072,-500.0,0.00013698,2]
[333067707,1721814453096,-500.0,0.00013698,2]
[333067708,1721814453118,-500.0,0.00013698,2]
[333067709,1721814453140,-157.14943285,0.00013698,2]
[333067710,1721814453162,-485.68009819,0.00013698,2]
[333067711,1721814453193,-500.0,0.00013698,2]
[333067712,1721814453216,-500.0,0.00013698,2]
[333067713,1721814453239,-500.0,0.00013698,2]
[333067714,1721814453262,-500.0,0.00013698,2]
[333067715,1721814453287,-978.66,0.00013698,2]
[333067716,1721814453310,-500.0,0.00013698,2]
[333067717,1721814453333,-500.0,0.00013698,2]
[333067718,1721814453355,-500.0,0.00013698,2]
[333067719,1721814453378,-500.0,0.00013698,2]
[333067720,1721814453400,-500.0,0.00013698,2]
[333067721,1721814453428,-500.0,0.00013698,2]
[333067722,1721814453452,-600.0,0.00013698,2]
[333067723,1721814453475,-500.0,0.00013698,2]
[333067724,1721814453498,-290.87914019,0.00013698,2]
[333067725,1721814453522,-128.47871085,0.00013698,2]
[333067728,1721814553130,-459.13593927,9.999e-05,2]
[333067729,1721814553151,-200.0,0.0001,2]
[333067730,1721814553172,-400.0,0.0001137,2]
[333067735,1721814572657,6.12406073,0.0001,2]
[333067736,1721814572681,193.87593927,0.0001,2]
[333067737,1721814572819,400.0,0.0001137,2]
[333067767,1721814632052,-600.0,0.00013147,2]
[333067768,1721814632061,-164.4384806,0.00013561,2]
[333067769,1721814632070,-1034.8312236,0.00013598,2]
[333067771,1721814632080,-15311.0424963,0.00013688,2]
[333067773,1721814632090,-7655.52124815,0.00013689,2]
[333067775,1721814632100,-978.66,0.00013698,2]
[333067777,1721814632109,-500.0,0.00013698,2]
[333067779,1721814632118,-978.66,0.00013698,2]
[333067781,1721814632128,-155.2364513,0.00013698,2]
[333067783,1721814632137,-978.66,0.00013698,2]
[333067785,1721814632146,-978.66,0.00013698,2]
[333067787,1721814632156,-500.90516344,0.00013698,2]
[333067789,1721814632165,-978.66,0.00013698,2]
[333067791,1721814632174,-978.66,0.00013698,2]
[333067793,1721814632184,-978.66,0.00013698,2]
[333067796,1721814632194,-978.66,0.00013698,2]
[333067798,1721814632204,-978.66,0.00013698,2]
[333067800,1721814632213,-978.66,0.00013698,2]
[333067802,1721814632224,-978.66,0.00013698,2]
[333067804,1721814632233,-500.0,0.00013698,2]
[333067806,1721814632242,-978.66,0.00013698,2]
[333067808,1721814632252,-978.66,0.00013698,2]
[333067809,1721814632261,-978.66,0.00013698,2]
[333067812,1721814632271,-978.66,0.00013698,2]
[333067814,1721814632280,-5207.22,0.00013698,2]
[333067816,1721814632289,-978.70434397,0.00013698,2]
[333067818,1721814632298,-554.22845092,0.00013698,2]
[333067820,1721814632307,-501.37393184,0.00013698,2]
[333067821,1721814632317,-511.32243903,0.00013698,2]
[333067823,1721814632326,-669.86,0.00013698,2]
[333067825,1721814632337,-500.0,0.00013698,2]
[333067827,1721814632347,-448.52733779,0.00013698,2]
[333067829,1721814632356,-150.0,0.00013698,2]
[333067831,1721814632366,-500.0,0.00013698,2]
[333067833,1721814632375,-500.0,0.00013698,2]
[333067836,1721814632385,-202.79188711,0.00013698,2]
[333067838,1721814632396,-500.0,0.00013698,2]
[333067840,1721814632406,-500.0,0.00013698,2]
[333067842,1721814632416,-500.0,0.00013698,2]
[333067844,1721814632426,-500.0,0.00013698,2]
[333067846,1721814632436,-500.0,0.00013698,2]
[333067848,1721814632445,-500.0,0.00013698,2]
[333067850,1721814632457,-500.0,0.00013698,2]
[333067852,1721814632475,-500.0,0.00013698,2]
[333067854,1721814632484,-500.0,0.00013698,2]
[333067856,1721814632495,-500.0,0.00013698,2]
[333067858,1721814632506,-500.0,0.00013698,2]
[333067860,1721814632516,-500.0,0.00013698,2]
[333067862,1721814632526,-500.0,0.00013698,2]
[333067864,1721814632536,-500.0,0.00013698,2]
[333067866,1721814632550,-649.40005782,0.00013698,2]
[333067868,1721814632559,-1893.93,0.00013698,2]
[333067870,1721814632570,-390.77702991,0.00013698,2]
[333067872,1721814632580,-500.0,0.00013698,2]
[333067874,1721814632591,-261.47655214,0.00013698,2]
[333067876,1721814632601,-519.93626548,0.00013698,2]
[333067878,1721814632611,-546.85,0.00013698,2]
[333067880,1721814632621,-500.0,0.00013698,2]
[333067882,1721814632631,-500.0,0.00013698,2]
[333067884,1721814632641,-500.0,0.00013698,2]
[333067886,1721814632650,-500.0,0.00013698,2]
[333067889,1721814632660,-500.0,0.00013698,2]
[333067890,1721814632670,-518.59543722,0.00013698,2]
[333067892,1721814632680,-233.590331,0.00013698,2]
[333067894,1721814632690,-516.09647894,0.00013698,2]
[333067896,1721814632700,-233.590331,0.00013698,2]
[333067897,1721814632710,-233.590331,0.00013698,2]
[333067899,1721814632720,-233.590331,0.00013698,2]
[333067901,1721814632731,-233.590331,0.00013698,2]
[333067902,1721814632741,-233.590331,0.00013698,2]
[333067903,1721814632751,-233.590331,0.00013698,2]
[333067904,1721814632761,-233.590331,0.00013698,2]
[333067905,1721814632770,-233.590331,0.00013698,2]
[333067906,1721814632780,-233.590331,0.00013698,2]
[333067907,1721814632790,-233.590331,0.00013698,2]
[333067908,1721814632799,-233.590331,0.00013698,2]
[333067909,1721814632809,-233.590331,0.00013698,2]
[333067910,1721814632818,-233.590331,0.00013698,2]
[333067911,1721814632828,-233.590331,0.00013698,2]
[333067912,1721814632839,-233.590331,0.00013698,2]
[333067913,1721814632848,-233.590331,0.00013698,2]
[333067914,1721814632858,-233.590331,0.00013698,2]
[333067915,1721814632868,-233.590331,0.00013698,2]
[333067916,1721814632878,-233.590332,0.00013698,2]
[333067917,1721814632887,-2350.53,0.00013698,2]
[333067918,1721814632897,-501.65471872,0.00013698,2]
[333067919,1721814632907,-500.0,0.00013698,2]
[333067920,1721814632916,-362.45556053,0.00013698,2]
[333067921,1721814632927,-500.0,0.00013698,2]
[333067922,1721814632937,-500.0,0.00013698,2]
[333067923,1721814632947,-500.0,0.00013698,2]
[333067925,1721814632957,-500.0,0.00013698,2]
[333067926,1721814632966,-500.0,0.00013698,2]
[333067928,1721814632976,-500.0,0.00013698,2]
[333067930,1721814632986,-646.86,0.00013698,2]
[333067932,1721814632995,-500.0,0.00013698,2]
[333067933,1721814633006,-500.0,0.00013698,2]
[333067935,1721814633015,-500.0,0.00013698,2]
[333067937,1721814633028,-503.96036488,0.00013698,2]
[333067939,1721814633038,-500.0,0.00013698,2]
[333067940,1721814633048,-500.0,0.00013698,2]
[333067943,1721814633059,-2051.47,0.00013698,2]
[333067945,1721814633071,-580.89,0.00013698,2]
[333067946,1721814633081,-505.2805915,0.00013698,2]
[333067948,1721814633092,-15933.39,0.00013698,2]
[333067950,1721814633102,-500.0,0.00013698,2]
[333067952,1721814633112,-500.0,0.00013698,2]
[333067954,1721814633123,-500.0,0.00013698,2]
[333067955,1721814633133,-500.0,0.00013698,2]
[333067957,1721814633143,-500.0,0.00013698,2]
[333067959,1721814633153,-500.0,0.00013698,2]
[333067961,1721814633162,-866.94,0.00013698,2]
[333067962,1721814633172,-505.26357198,0.00013698,2]
[333067964,1721814633183,-508.8771323,0.00013698,2]
[333067966,1721814633193,-501.40667391,0.00013698,2]
[333067968,1721814633204,-500.0,0.00013698,2]
[333067970,1721814633214,-7673.81,0.00013698,2]
[333067972,1721814633225,-1321.75,0.00013698,2]
[333067974,1721814633236,-9031.13,0.00013698,2]
[333067976,1721814633247,-504.78651677,0.00013698,2]
[333067978,1721814633260,-505.20594028,0.00013698,2]
[333067980,1721814633271,-3048.74,0.00013698,2]
[333067982,1721814633282,-509.20764619,0.00013698,2]
[333067984,1721814633295,-500.0,0.00013698,2]
[333067986,1721814633304,-772.09,0.00013698,2]
[333067988,1721814633316,-500.0,0.00013698,2]
[333067990,1721814633326,-500.0,0.00013698,2]
[333067992,1721814633338,-500.0,0.00013698,2]
[333067993,1721814633349,-756.98,0.00013698,2]
[333067995,1721814633359,-500.0,0.00013698,2]
[333067996,1721814633369,-420.66355838,0.00013698,2]
[333067997,1721814633379,-485.79307554,0.00013698,2]
[333067998,1721814633621,-325.89692446,0.00013698,2]
[333067999,1721814633631,-536.34,0.00013698,2]
[333068000,1721814633641,-497.77436121,0.00013698,2]
[333068001,1721814633651,-500.0,0.00013698,2]
[333068002,1721814633660,-157.9671871,0.00013698,2]
[333068003,1721814633673,-342.0328129,0.00013698,2]
[333068004,1721814633682,-500.0,0.00013698,2]
[333068005,1721814633693,-222.59903814,0.00013698,2]
[333068006,1721814633703,-500.0,0.00013698,2]
[333068007,1721814633712,-26.03959229,0.00013698,2]
[333068220,1721814644792,-226.42801487,0.00013698,2]
[333068221,1721814644802,-500.0,0.00013698,2]
[333068222,1721814644811,-4059.30804113,0.00013698,2]
[333068286,1721814646257,-795.77195887,0.00013698,2]
[333068288,1721814646266,-500.0,0.00013698,2]
[333068290,1721814646276,-500.0,0.00013698,2]
[333068292,1721814646286,-555.88,0.00013698,2]
[333068294,1721814646296,-3579.57,0.00013698,2]
[333068296,1721814646308,-500.0,0.00013698,2]
[333068298,1721814646318,-875.88,0.00013698,2]
[333068300,1721814646327,-500.0,0.00013698,2]
[333068302,1721814646337,-502.81918292,0.00013698,2]
[333068304,1721814646346,-500.0,0.00013698,2]
[333068306,1721814646356,-698.26,0.00013698,2]
[333068308,1721814646366,-500.0,0.00013698,2]
[333068310,1721814646375,-253.23061891,0.00013698,2]
[333068323,1721814655236,200.0,0.0001,2]
[333068324,1721814655387,400.0,0.0001137,2]
[333068325,1721814729132,200.0,0.0001,2]
[333068326,1721814729553,123.25580723,0.0001137,2]
[333068332,1721814793670,3000.0,0.000136,30]
[333068338,1721815393296,3000.0,0.000136,30]
[333068340,1721815752156,-300.0,9.998e-05,2]
[333068341,1721815752177,-848.60176643,9.999e-05,2]
[333068342,1721815752198,-521.26452244,9.999e-05,2]
[333068343,1721815752218,-663.44744723,9.999e-05,2]
[333068344,1721815752238,-941.73928157,9.999e-05,2]
[333068345,1721815752261,-530.95109038,9.999e-05,2]
[333068346,1721815752281,-188.05852618,9.999e-05,2]
[333068347,1721815752302,-196.99282284,9.999e-05,2]
[333068348,1721815752322,-165.30399309,9.999e-05,2]
[333068349,1721815752343,-495.54367587,9.999e-05,2]
[333068350,1721815752364,-200.67004487,9.999e-05,2]
[333068351,1721815752385,-163.91871575,9.999e-05,2]
[333068352,1721815752405,-154.77556308,9.999e-05,2]
[333068353,1721815752426,-459.13593927,9.999e-05,2]
[333068354,1721815752447,-154.82195475,9.999e-05,2]
[333068355,1721815752467,-305.88568846,9.999e-05,2]
[333068356,1721815752488,-231.01766097,9.999e-05,2]
[333068357,1721815752511,-180.28036357,9.999e-05,2]
[333068358,1721815752532,-156.17743256,9.999e-05,2]
[333068359,1721815752553,-288.26099683,9.999e-05,2]
[333068360,1721815752574,-154.69833824,0.0001,2]
[333068361,1721815752595,-200.0,0.0001,2]
[333068362,1721815752619,-178.571429,0.00010313,2]
[333068363,1721815752641,-178.571429,0.00010403,2]
[333068364,1721815752662,-178.571429,0.00010492,2]
[333068365,1721815752683,-178.571429,0.00010582,2]
[333068366,1721815752704,-23558.03136334,0.00010635,2]
[333068367,1721815753316,-1341.96863666,0.00010635,2]
[333068368,1721815753339,-178.571429,0.00010671,2]
[333068369,1721815753362,-338.5136921,0.00010746,2]
[333068370,1721815753385,-178.571429,0.00010761,2]
[333068371,1721815753407,-178.571429,0.00010851,2]
[333068372,1721815753428,-420.0,0.00010998,2]
[333068373,1721815753449,-2376.9166471,0.00011259,2]
[333068374,1721815753470,-400.0,0.0001137,2]
[333068375,1721815753491,-1529.0830359,0.0001174,2]
[333068376,1721815753514,-919.7218057,0.00011906,2]
[333068377,1721815753536,-167.0,0.00012098,2]
[333068378,1721815755528,200.0,0.0001,2]
[333068379,1721815755942,400.0,0.0001137,2]
[333068380,1721815810782,123.7288881,0.00010635,2]
[333068381,1721815810808,1413.83365709,0.00010635,2]
[333068382,1721815810831,620.72991798,0.00010635,2]
[333068503,1721815838298,-941.73928157,9.999e-05,2]
[333068504,1721815838307,-200.0,0.0001,2]
[333068506,1721815838317,-1623.39669232,0.00010635,2]
[333068507,1721815838327,-19446.13303705,0.00010635,2]
[333068508,1721815838336,-1347.71779823,0.00010635,2]
[333068531,1721815840510,-167.61801203,9.999e-05,2]
[333068532,1721815840520,-1527.36198797,0.00010635,2]
[333068555,1721815843497,-155.20050219,0.0001,2]
[333068556,1721815843507,-1833.22411243,0.00010635,2]
[333068557,1721815843517,-400.0,0.0001137,2]
[333068559,1721815843526,-251.06765198,0.00012119,2]
[333068560,1721815843536,-293.10560774,0.00012891,2]
[333068561,1721815843545,-849.44625482,0.00012891,2]
[333068562,1721815843554,-905.47732065,0.000129,2]
[333068563,1721815843564,-905.47732059,0.000129,2]
[333068564,1721815843574,-1000.0,0.00013,8]
[333068565,1721815843587,-600.0,0.00013147,2]
[333068566,1721815843598,-905.47732059,0.00013237,2]
[333068568,1721815843608,-200.0,0.00013425,2]
[333068569,1721815843619,-206.6937542,0.00013425,2]
[333068570,1721815843628,-5304.84073988,0.0001353,2]
[333068571,1721815843639,-164.4384805,0.00013561,2]
[333068572,1721815843649,-720.8653435,0.00013598,2]
[333068573,1721815843659,-1296.05090019,0.00013598,2]
[333068574,1721815843668,-364.6393523,0.00013651,2]
[333068575,1721815843677,-268.6705,0.00013678,2]
[333068576,1721815843688,-2686.705,0.00013688,2]
[333068577,1721815843697,-500.0,0.00013698,2]
[333068578,1721815843710,-548.53300021,0.00013698,2]
[333068579,1721815843721,-387.2852277,0.00013698,2]
[333068580,1721815843732,-500.02790774,0.00013698,2]
[333068581,1721815843742,-500.0,0.00013698,2]
[333068582,1721815843752,-500.0,0.00013698,2]
[333068583,1721815843762,-500.0,0.00013698,2]
[333068584,1721815843772,-500.0,0.00013698,2]
[333068585,1721815843782,-500.0,0.00013698,2]
[333068586,1721815843792,-500.0,0.00013698,2]
[333068587,1721815843802,-500.0,0.00013698,2]
[333068588,1721815843811,-500.0,0.00013698,2]
[333068589,1721815843821,-500.0,0.00013698,2]
[333068590,1721815843835,-500.0,0.00013698,2]
[333068591,1721815843846,-500.0,0.00013698,2]
[333068592,1721815843857,-501.69688723,0.00013698,2]
[333068593,1721815843868,-500.0,0.00013698,2]
[333068594,1721815843878,-500.0,0.00013698,2]
[333068595,1721815843889,-500.0,0.00013698,2]
[333068596,1721815843903,-500.0,0.00013698,2]
[333068597,1721815843915,-500.0,0.00013698,2]
[333068598,1721815843927,-500.0,0.00013698,2]
[333068599,1721815843937,-301.69324672,0.00013698,2]
[333068600,1721815843949,-209.24527962,0.00013698,2]
[333068601,1721815843959,-500.0,0.00013698,2]
[333068602,1721815843969,-500.0,0.00013698,2]
[333068603,1721815843980,-505.92248402,0.00013698,2]
[333068604,1721815843990,-500.0,0.00013698,2]
[333068605,1721815843999,-501.34573133,0.00013698,2]
[333068606,1721815844009,-500.0,0.00013698,2]
[333068607,1721815844019,-500.0,0.00013698,2]
[333068608,1721815844028,-627.79616502,0.00013698,2]
[333068609,1721815844039,-524.68423695,0.00013698,2]
[333068610,1721815844049,-500.0,0.00013698,2]
[333068611,1721815844060,-500.0,0.00013698,2]
[333068612,1721815844070,-500.0,0.00013698,2]
[333068613,1721815844079,-500.0,0.00013698,2]
[333068614,1721815844090,-500.0,0.00013698,2]
[333068615,1721815844099,-500.0,0.00013698,2]
[333068616,1721815844118,-500.0,0.00013698,2]
[333068617,1721815844134,-500.0,0.00013698,2]
[333068618,1721815844146,-500.0,0.00013698,2]
[333068619,1721815844157,-500.0,0.00013698,2]
[333068620,1721815844168,-500.0,0.00013698,2]
[333068621,1721815844177,-500.0,0.00013698,2]
[333068622,1721815844187,-500.0,0.00013698,2]
[333068623,1721815844196,-500.0,0.00013698,2]
[333068624,1721815844206,-500.0,0.00013698,2]
[333068625,1721815844216,-500.0,0.00013698,2]
[333068626,1721815844228,-500.0,0.00013698,2]
[333068627,1721815844238,-500.0,0.00013698,2]
[333068628,1721815844249,-500.66325794,0.00013698,2]
[333068629,1721815844261,-500.0,0.00013698,2]
[333068630,1721815844271,-500.0,0.00013698,2]
[333068631,1721815844280,-597.27,0.00013698,2]
[333068632,1721815844292,-500.0,0.00013698,2]
[333068633,1721815844303,-500.0,0.00013698,2]
[333068634,1721815844314,-500.0,0.00013698,2]
[333068635,1721815844327,-500.0,0.00013698,2]
[333068636,1721815844339,-500.0,0.00013698,2]
[333068637,1721815844348,-1514.62,0.00013698,2]
[333068638,1721815844358,-500.0,0.00013698,2]
[333068639,1721815844368,-220.98056103,0.00013698,2]
[333068640,1721815844378,-500.0,0.00013698,2]
[333068641,1721815844387,-500.0,0.00013698,2]
[333068642,1721815844397,-500.0,0.00013698,2]
[333068643,1721815844406,-637.6329122,0.00013698,2]
[333068644,1721815844416,-246.37709923,0.00013698,2]
[333068645,1721815844426,-500.0,0.00013698,2]
[333068646,1721815844435,-500.0,0.00013698,2]
[333068647,1721815844445,-524.39,0.00013698,2]
[333068648,1721815844455,-500.0,0.00013698,2]
[333068649,1721815844464,-500.0,0.00013698,2]
[333068650,1721815844475,-500.0,0.00013698,2]
[333068651,1721815844485,-500.0,0.00013698,2]
[333068652,1721815844494,-500.0,0.00013698,2]
[333068653,1721815844504,-3731.54,0.00013698,2]
[333068654,1721815844514,-500.0,0.00013698,2]
[333068655,1721815844525,-280.45205005,0.00013698,2]
[333068656,1721815844537,-515.96403312,0.00013698,2]
[333068657,1721815844548,-500.0,0.00013698,2]
[333068658,1721815844560,-638.71,0.00013698,2]
[333068659,1721815844570,-1301.17,0.00013698,2]
[333068660,1721815844580,-450.81526207,0.00013698,2]
[333068661,1721815844592,-500.0,0.00013698,2]
[333068662,1721815844601,-523.22272385,0.00013698,2]
[333068663,1721815844611,-500.0,0.00013698,2]
[333068664,1721815844620,-696.99628416,0.00013698,2]
[333068770,1721815998699,3000.0,0.000136,30]
[333068779,1721816592805,840.63812,0.000136,30]
[333068780,1721816592832,2159.36188,0.000136,30]
[333068781,1721816653528,273.01976695,0.00025,120]
[333068782,1721816756139,-309.30406586,9.999e-05,2]
[333068783,1721816756164,-315.39778512,9.999e-05,2]
[333068786,1721816950188,-26.25186596,9.999e-05,2]
[333068787,1721816950210,-941.73928157,9.999e-05,2]
[333068788,1721816950231,-154.69833824,9.999e-05,2]
[333068789,1721816950256,-1429.57702127,9.999e-05,2]
[333068790,1721816950279,-4396.40344571,9.999e-05,2]
[333068791,1721816950300,-366.36048832,9.999e-05,2]
[333068792,1721816950320,-206.06182781,9.999e-05,2]
[333068793,1721816950343,-200.0,0.0001,2]
[333068794,1721816950365,-10967.15073112,0.00011203,2]
[333068795,1721816951131,-13932.84926888,0.00011203,2]
[333068796,1721816951162,-250.0,0.00011271,2]
[333068797,1721816951184,-400.0,0.0001137,2]
[333068798,1721816951205,-1276.84130931,0.00011643,2]
[333068799,1721816962103,-3031.44740839,0.00011643,2]
[333068800,1721816962127,-200.0,0.00012053,2]
[333068801,1721816962150,-200.0,0.00012087,2]
[333068802,1721816962173,-200.0,0.0001212,2]
[333068803,1721816962194,-226.54771123,0.0001212,2]
[333068804,1721816962218,-200.0,0.00012153,2]
[333068805,1721816962241,-200.0,0.00012186,2]
[333068806,1721816962270,-200.0,0.00012219,2]
[333068807,1721816962293,-200.0,0.00012252,2]
[333068808,1721816962317,-200.0,0.00012285,2]
[333068809,1721816962341,-200.0,0.00012318,2]
[333068810,1721816968138,90.49842955,0.0001137,2]
[333068811,1721816969098,-200.0,0.0001,2]
[333068812,1721816969119,-309.50157045,0.0001137,2]
[333068915,1721817039913,200.0,0.0001,2]
[333068935,1721817040411,280.56897657,0.0001137,2]
[333068980,1721817040815,-119.43102343,0.0001137,2]
[333068981,1721817040825,-200.0,0.00012351,2]
[333068983,1721817040837,-200.0,0.00012384,2]
[333068984,1721817040847,-200.0,0.00012417,2]
[333068986,1721817040857,-200.0,0.0001245,2]
[333068988,1721817040867,-200.0,0.00012483,2]
[333068990,1721817040877,-80.67579097,0.00012516,2]